bitfinex/quotes_SOLUSD_20230113
["timestamp","ask_amount","ask_price","bid_price","bid_amount"]
[1673618000505,17.0,16.62,16.61,12.35]
[1673618003633,45.13,16.621,16.61,12.35]
[1673618003848,162.1555,16.623,16.61,12.35]
[1673618004064,117.0355,16.623,16.61,61.67]
[1673618004252,45.13,16.622,16.61,61.67]
[1673618005089,17.0,16.621,16.61,61.67]
[1673618006146,17.0,16.622,16.61,61.67]
[1673618007328,117.0355,16.623,16.61,61.67]
[1673618007645,117.0355,16.623,16.61,91.5500799]
[1673618008372,117.0355,16.623,16.61,61.67]
[1673618008570,45.13,16.622,16.61,61.67]
[1673618008784,17.0,16.621,16.61,61.67]
[1673618009006,17.0,16.622,16.61,61.67]
[1673618011850,17.0,16.622,16.611,29.8800799]
[1673618012029,17.0,16.622,16.611,67.1300799]
[1673618012684,17.0,16.622,16.612,10.0]
[1673618015205,17.0,16.622,16.611,47.25]
[1673618015507,17.0,16.622,16.611,37.25]
[1673618016857,17.0,16.622,16.61,61.67]
[1673618018735,62.13,16.622,16.61,98.89]
[1673618018972,17.0,16.622,16.61,61.67]
[1673618019169,10.0,16.621,16.61,61.67]
[1673618019363,62.13,16.62,16.61,61.67]
[1673618019577,10.0,16.618,16.61,12.34]
[1673618019791,10.0,16.616,16.604,110.0466]
[1673618020004,82.14,16.615,16.604,110.0466]
[1673618020519,10.0,16.614,16.604,110.0466]
[1673618020738,62.15,16.613,16.604,110.0466]
[1673618021589,62.15,16.613,16.6,458.28]
[1673618021788,62.15,16.613,16.6,61.68]
[1673618021998,62.15,16.613,16.6,12.34]
[1673618022533,20.0,16.612,16.6,12.34]
[1673618022731,62.16,16.611,16.6,12.34]
[1673618023157,10.0,16.61,16.6,12.34]
[1673618023366,10.0,16.608,16.6,12.34]
[1673618023573,17.0,16.607,16.6,12.34]
[1673618025146,17.0,16.608,16.6,12.34]
[1673618027887,17.0,16.609,16.6,12.34]
[1673618028720,45.16,16.611,16.6,12.34]
[1673618028721,17.0,16.61,16.6,12.34]
[1673618029360,17.0,16.61,16.6,61.64]
[1673618039879,45.15,16.613,16.6,61.64]
[1673618040297,45.15,16.613,16.6,91.5200799]
[1673618040616,45.15,16.613,16.6,61.64]
[1673618041751,17.0,16.612,16.6,61.64]
[1673618042167,27.0,16.612,16.6,61.64]
[1673618042594,45.16,16.611,16.6,61.64]
[1673618042798,17.0,16.61,16.6,61.64]
[1673618043031,45.16,16.609,16.6,61.64]
[1673618043223,17.0,16.608,16.6,61.64]
[1673618043774,45.15,16.613,16.6,61.64]
[1673618044304,45.14,16.616,16.601,67.3500799]
[1673618044622,45.14,16.617,16.602,29.8800799]
[1673618044927,17.0,16.614,16.603,20.0]
[1673618045147,17.0,16.615,16.603,20.0]
[1673618045331,17.0,16.615,16.603,57.47]
[1673618045546,20.0,16.616,16.603,87.3500799]
[1673618045753,20.0,16.62,16.61,61.78]
[1673618045962,20.0,16.621,16.61,61.78]
[1673618046177,20.0,16.619,16.61,61.78]
[1673618046394,65.14,16.618,16.61,61.78]
[1673618046607,20.0,16.618,16.61,61.78]
[1673618047138,20.0,16.618,16.61,12.37]
[1673618047350,17.0,16.617,16.61,12.37]
[1673618047537,20.0,16.616,16.61,12.37]
[1673618047959,17.0,16.615,16.61,12.37]
[1673618048273,17.0,16.615,16.603,37.47]
[1673618048484,17.0,16.615,16.602,37.31]
[1673618048906,62.14,16.615,16.601,37.4]
[1673618049117,20.0,16.614,16.601,37.4]
[1673618049327,17.0,16.613,16.6,458.27]
[1673618049546,45.15,16.612,16.6,61.67]
[1673618049869,20.0,16.61,16.6,61.67]
[1673618050176,17.0,16.609,16.6,61.67]
[1673618051222,17.0,16.61,16.6,61.67]
[1673618058379,45.16,16.611,16.6,61.67]
[1673618058592,65.15,16.613,16.6,61.67]
[1673618059842,17.0,16.612,16.6,61.67]
[1673618062145,65.16,16.611,16.6,61.67]
[1673618062351,17.0,16.61,16.6,61.67]
[1673618062562,45.16,16.609,16.6,61.67]
[1673618062795,17.0,16.608,16.6,61.67]
[1673618063407,17.0,16.609,16.6,61.67]
[1673618065105,17.0,16.609,16.6,12.27]
[1673618065630,45.16,16.608,16.6,12.27]
[1673618065838,17.0,16.607,16.6,12.27]
[1673618067194,20.0,16.606,16.6,12.35]
[1673618067403,17.0,16.605,16.6,12.35]
[1673618068144,17.0,16.605,16.593,37.53]
[1673618068351,17.0,16.605,16.592,37.53]
[1673618068565,17.0,16.605,16.591,152.6311]
[1673618069414,20.0,16.604,16.591,152.6311]
[1673618069622,17.0,16.603,16.591,152.6311]
[1673618072777,17.0,16.604,16.591,152.6311]
[1673618076131,17.0,16.605,16.591,152.6311]
[1673618076469,62.17,16.605,16.6,12.35]
[1673618077393,62.17,16.605,16.591,115.1011]
[1673618078018,20.0,16.604,16.591,115.1011]
[1673618078229,62.18,16.603,16.59,12.35]
[1673618078860,20.0,16.602,16.59,12.35]
[1673618079070,62.18,16.601,16.59,12.35]
[1673618079303,62.18,16.601,16.585,148.8504]
[1673618079304,20.0,16.599,16.585,111.1204]
[1673618079509,62.19,16.598,16.585,111.1204]
[1673618079706,20.0,16.597,16.585,111.1204]
[1673618079919,62.2,16.596,16.585,108.6204]
[1673618080128,20.0,16.595,16.585,108.6204]
[1673618080338,17.0,16.594,16.585,108.6204]
[1673618080548,17.0,16.594,16.58,129.5400799]
[1673618080756,17.0,16.594,16.58,91.7900799]
[1673618080986,62.2,16.594,16.58,91.7900799]
[1673618082243,62.2,16.594,16.579,37.75]
[1673618082460,62.2,16.594,16.578,118.2728]
[1673618082763,62.2,16.594,16.58,12.32]
[1673618083192,62.2,16.594,16.58,61.67]
[1673618083923,62.2,16.594,16.58,12.31]
[1673618084241,20.0,16.593,16.58,12.31]
[1673618084444,62.21,16.592,16.58,12.31]
[1673618085396,17.0,16.592,16.58,12.31]
[1673618085594,17.0,16.593,16.58,12.31]
[1673618085806,45.21,16.592,16.58,12.31]
[1673618086021,17.0,16.591,16.58,12.31]
[1673618086643,62.21,16.592,16.58,12.31]
[1673618087503,20.0,16.591,16.58,12.31]
[1673618087692,62.21,16.59,16.58,12.31]
[1673618088964,20.0,16.589,16.58,12.31]
[1673618089164,17.0,16.588,16.58,12.31]
[1673618089705,20.0,16.593,16.58,12.31]
[1673618089706,65.2,16.593,16.58,12.31]
[1673618090024,45.2,16.593,16.58,12.31]
[1673618090236,45.2,16.596,16.58,61.71]
[1673618090429,45.2,16.594,16.581,37.97]
[1673618090628,45.2,16.594,16.58,61.71]
[1673618091275,45.19,16.599,16.58,61.71]
[1673618091475,20.0,16.598,16.581,37.88]
[1673618091686,45.19,16.597,16.582,20.0]
[1673618091910,20.0,16.596,16.582,20.0]
[1673618092542,20.0,16.598,16.582,20.0]
[1673618092747,62.19,16.597,16.581,37.88]
[1673618093070,20.0,16.596,16.581,37.88]
[1673618093282,62.2,16.595,16.581,37.88]
[1673618093479,65.2,16.596,16.581,37.88]
[1673618093678,20.0,16.596,16.59,12.35]
[1673618093890,20.0,16.598,16.59,12.35]
[1673618095584,62.19,16.597,16.59,12.35]
[1673618095795,20.0,16.596,16.59,12.35]
[1673618096010,17.0,16.595,16.59,12.35]
[1673618096224,17.0,16.595,16.583,37.87]
[1673618098320,20.0,16.596,16.583,37.87]
[1673618098640,20.0,16.596,16.59,12.35]
[1673618098838,20.0,16.598,16.59,12.35]
[1673618099777,17.0,16.597,16.59,12.35]
[1673618099988,20.0,16.596,16.59,12.35]
[1673618100316,17.0,16.595,16.59,12.35]
[1673618100530,17.0,16.595,16.585,37.78]
[1673618102101,16.90470049,16.595,16.585,37.78]
[1673618103244,20.0,16.596,16.585,37.78]
[1673618103456,20.0,16.599,16.59,12.35]
[1673618103684,45.19,16.598,16.59,12.35]
[1673618103884,20.0,16.597,16.59,12.35]
[1673618104309,17.0,16.596,16.59,12.35]
[1673618104627,20.0,16.595,16.59,12.35]
[1673618104842,20.0,16.595,16.585,37.78]
[1673618107236,17.0,16.594,16.581,37.79]
[1673618107971,17.0,16.594,16.582,20.0]
[1673618108507,17.0,16.594,16.581,37.79]
[1673618108717,45.2,16.593,16.58,61.71]
[1673618108923,17.0,16.592,16.58,61.71]
[1673618109562,17.0,16.593,16.58,61.71]
[1673618109775,37.0,16.593,16.58,61.71]
[1673618110300,45.21,16.592,16.58,61.71]
[1673618110620,17.0,16.591,16.58,61.71]
[1673618110816,45.21,16.59,16.58,61.71]
[1673618111026,17.0,16.589,16.58,61.71]
[1673618115650,45.21,16.592,16.58,61.71]
[1673618115861,45.2,16.593,16.58,61.71]
[1673618116909,45.2,16.594,16.58,61.71]
[1673618117452,45.2,16.594,16.58,99.64]
[1673618117880,45.2,16.594,16.58,61.71]
[1673618118060,37.0,16.593,16.58,61.71]
[1673618120083,45.21,16.592,16.58,61.71]
[1673618120409,17.0,16.591,16.58,61.71]
[1673618121128,45.2,16.593,16.58,61.71]
[1673618121443,20.0,16.595,16.582,20.0]
[1673618122078,20.0,16.595,16.581,57.92]
[1673618122918,17.0,16.594,16.581,57.92]
[1673618123758,20.0,16.595,16.582,20.0]
[1673618124158,20.0,16.595,16.583,37.83]
[1673618125336,17.0,16.594,16.583,37.83]
[1673618126172,17.0,16.594,16.582,37.83]
[1673618126389,17.0,16.594,16.581,37.83]
[1673618128582,17.0,16.594,16.58,61.71]
[1673618130579,45.2,16.593,16.581,37.87]
[1673618130793,17.0,16.592,16.58,61.71]
[1673618133100,45.2,16.594,16.58,61.71]
[1673618133310,20.0,16.595,16.58,61.71]
[1673618133852,65.2,16.595,16.581,37.88]
[1673618134469,17.0,16.594,16.581,67.7600799]
[1673618134676,45.19,16.6,16.582,20.0]
[1673618134900,45.18,16.603,16.59,12.33]
[1673618135090,45.17,16.604,16.59,12.33]
[1673618135835,45.17,16.604,16.59,91.5300799]
[1673618136043,17.0,16.603,16.591,37.65]
[1673618136258,17.0,16.603,16.59,61.65]
[1673618141213,17.0,16.603,16.59,61.15]
[1673618142261,17.0,16.603,16.59,12.34]
[1673618142448,45.18,16.602,16.59,12.34]
[1673618142658,17.0,16.601,16.59,12.34]
[1673618143306,20.0,16.604,16.59,12.34]
[1673618143307,45.19,16.6,16.59,12.34]
[1673618143515,17.0,16.599,16.59,12.34]
[1673618143943,17.0,16.6,16.59,12.34]
[1673618150546,17.0,16.601,16.59,12.34]
[1673618151490,37.0,16.601,16.59,12.34]
[1673618155592,17.0,16.601,16.59,12.34]
[1673618155805,45.19,16.6,16.59,12.34]
[1673618156129,17.0,16.601,16.59,12.34]
[1673618156130,17.0,16.599,16.59,12.34]
[1673618156335,62.18,16.601,16.59,12.34]
[1673618156764,17.0,16.601,16.59,12.34]
[1673618156978,17.0,16.602,16.59,12.34]
[1673618159383,45.18,16.603,16.59,12.34]
[1673618160754,17.0,16.602,16.59,12.34]
[1673618163827,45.18,16.601,16.59,12.34]
[1673618164138,17.0,16.6,16.59,12.34]
[1673618172534,62.18,16.601,16.59,12.34]
[1673618174015,62.18,16.601,16.59,61.83]
[1673618174655,45.18,16.601,16.59,61.83]
[1673618174862,45.17,16.604,16.59,61.83]
[1673618175051,45.17,16.604,16.592,20.0]
[1673618175691,45.17,16.604,16.591,20.0]
[1673618175894,17.0,16.603,16.59,107.04]
[1673618177909,17.0,16.603,16.591,20.0]
[1673618178848,17.0,16.604,16.591,20.0]
[1673618179284,48.08696354,16.604,16.591,20.0]
[1673618180323,17.0,16.604,16.591,20.0]
[1673618180645,17.0,16.604,16.592,45.21]
[1673618184527,45.17,16.607,16.594,20.0]
[1673618184737,20.0,16.606,16.6,12.32]
[1673618185363,20.0,16.61,16.6,12.32]
[1673618185576,45.16,16.609,16.6,12.32]
[1673618185892,37.0,16.608,16.6,12.32]
[1673618186097,45.17,16.607,16.6,12.32]
[1673618186331,20.0,16.606,16.6,12.32]
[1673618187270,45.17,16.607,16.6,12.32]
[1673618187582,45.15,16.612,16.6,61.81]
[1673618187898,45.15,16.613,16.6,61.81]
[1673618188090,162.5543,16.614,16.6,61.81]
[1673618188948,17.0,16.613,16.6,61.81]
[1673618192619,17.0,16.613,16.601,40.56]
[1673618195271,20.0,16.612,16.6,12.36]
[1673618195456,20.0,16.61,16.6,12.36]
[1673618195669,62.16,16.609,16.6,12.36]
[1673618197584,17.0,16.609,16.6,12.36]
[1673618197777,17.0,16.61,16.6,12.36]
[1673618197991,45.16,16.609,16.6,12.36]
[1673618198195,17.0,16.608,16.6,12.36]
[1673618201564,20.0,16.607,16.6,12.36]
[1673618201778,82.17,16.606,16.591,38.18]
[1673618201992,82.17,16.606,16.59,458.36]
[1673618201993,20.0,16.605,16.59,458.36]
[1673618202200,17.0,16.604,16.59,496.02]
[1673618202403,62.17,16.604,16.59,99.42]
[1673618202836,17.0,16.604,16.59,99.42]
[1673618206843,17.0,16.604,16.59,50.02]
[1673618207051,45.18,16.603,16.59,12.36]
[1673618207242,17.0,16.602,16.59,12.36]
[1673618207449,20.0,16.6,16.59,12.36]
[1673618207685,17.0,16.599,16.59,12.36]
[1673618214823,65.19,16.598,16.59,12.36]
[1673618215015,20.0,16.596,16.584,37.77]
[1673618215231,20.0,16.595,16.583,37.77]
[1673618215442,17.0,16.594,16.583,37.77]
[1673618215762,17.0,16.594,16.582,37.77]
[1673618216931,45.2,16.593,16.579,113.4181]
[1673618217144,17.0,16.592,16.579,113.4181]
[1673618217326,45.21,16.591,16.58,12.33]
[1673618217540,17.0,16.592,16.58,61.82]
[1673618217751,65.2,16.595,16.58,61.82]
[1673618217974,17.0,16.594,16.58,61.82]
[1673618218172,20.0,16.593,16.58,12.36]
[1673618218382,62.21,16.592,16.58,12.36]
[1673618219007,20.0,16.591,16.58,12.36]
[1673618219225,17.0,16.59,16.58,12.36]
[1673618219435,62.21,16.59,16.58,12.36]
[1673618221109,45.21,16.59,16.58,12.36]
[1673618221317,45.2,16.593,16.58,12.36]
[1673618221526,65.2,16.595,16.581,37.97]
[1673618222827,17.0,16.594,16.581,37.97]
[1673618225565,45.2,16.593,16.58,12.36]
[1673618225731,20.0,16.591,16.58,12.34]
[1673618225943,17.0,16.59,16.58,12.34]
[1673618229198,45.22,16.589,16.58,12.34]
[1673618229429,17.0,16.588,16.58,12.34]
[1673618229978,17.0,16.589,16.58,12.34]
[1673618230178,17.0,16.589,16.561,396.6]
[1673618230179,20.0,16.587,16.57,12.33]
[1673618230375,62.22,16.586,16.57,12.33]
[1673618230586,20.0,16.584,16.57,12.33]
[1673618230813,62.23,16.583,16.57,12.33]
[1673618231234,20.0,16.582,16.565,38.0]
[1673618231425,20.0,16.582,16.564,109.5944]
[1673618231426,12.3,16.58,16.564,109.5944]
[1673618231639,65.24,16.579,16.56,12.42]
[1673618231853,17.0,16.578,16.56,12.42]
[1673618232058,20.0,16.576,16.56,12.42]
[1673618232278,82.25,16.575,16.56,61.82]
[1673618232490,45.25,16.577,16.561,68.2300799]
[1673618232687,106.2887569,16.581,16.562,109.5944]
[1673618232896,17.0,16.58,16.563,38.34]
[1673618233234,17.0,16.58,16.564,20.0]
[1673618233426,17.0,16.58,16.565,38.34]
[1673618233637,17.0,16.58,16.566,20.0]
[1673618233848,17.0,16.58,16.567,38.33]
[1673618234070,17.0,16.58,16.57,12.35]
[1673618234384,17.0,16.58,16.566,20.0]
[1673618234785,62.24,16.581,16.565,20.0]
[1673618235128,62.24,16.581,16.566,38.2]
[1673618235337,62.24,16.581,16.567,20.0]
[1673618236067,20.0,16.58,16.564,38.2]
[1673618236378,20.0,16.578,16.56,125.9072]
[1673618236601,82.25,16.577,16.56,125.9072]
[1673618236908,20.0,16.576,16.56,125.9072]
[1673618237117,82.25,16.575,16.56,125.9072]
[1673618237330,20.0,16.574,16.56,12.37]
[1673618237543,62.26,16.573,16.56,12.37]
[1673618237937,20.0,16.572,16.56,12.37]
[1673618238164,62.26,16.571,16.56,12.37]
[1673618238375,17.0,16.57,16.56,12.37]
[1673618238588,17.0,16.57,16.556,38.39]
[1673618238777,17.0,16.57,16.557,20.0]
[1673618238990,45.27,16.569,16.557,20.0]
[1673618239217,45.27,16.569,16.555,38.39]
[1673618239218,17.0,16.568,16.556,20.0]
[1673618239432,20.0,16.566,16.555,38.39]
[1673618239754,20.0,16.566,16.554,118.047]
[1673618239755,82.28,16.565,16.554,118.047]
[1673618240154,37.0,16.565,16.554,118.047]
[1673618241320,20.0,16.565,16.554,118.047]
[1673618241637,20.0,16.566,16.554,118.047]
[1673618242569,17.0,16.565,16.554,118.047]
[1673618242784,62.28,16.566,16.554,118.047]
[1673618243103,20.0,16.565,16.554,118.047]
[1673618243523,173.03660935,16.578,16.56,7.35]
[1673618243738,131.5466,16.578,16.561,38.47]
[1673618243957,131.5466,16.578,16.56,61.65]
[1673618244163,131.5466,16.578,16.561,38.31]
[1673618244369,45.25,16.577,16.561,38.31]
[1673618245006,45.25,16.577,16.561,150.1797]
[1673618245217,40.0,16.576,16.561,150.1797]
[1673618245426,45.25,16.575,16.561,150.1797]
[1673618245832,17.0,16.574,16.561,150.1797]
[1673618248368,17.0,16.574,16.561,80.30632363]
[1673618250571,45.26,16.573,16.56,12.27]
[1673618250790,17.0,16.572,16.56,12.27]
[1673618251530,62.26,16.573,16.56,12.27]
[1673618252584,62.26,16.573,16.538,180.6]
[1673618252585,12.3,16.57,16.552,38.32]
[1673618252791,82.27,16.569,16.552,38.32]
[1673618252988,20.0,16.568,16.552,38.32]
[1673618253202,20.0,16.566,16.552,38.32]
[1673618253411,82.28,16.565,16.552,38.32]
[1673618253832,20.0,16.564,16.552,38.32]
[1673618254040,62.29,16.563,16.552,38.32]
[1673618254455,62.29,16.563,16.552,33.32]
[1673618254456,20.0,16.562,16.552,33.32]
[1673618254665,17.0,16.561,16.552,33.32]
[1673618254882,17.0,16.561,16.55,12.36]
[1673618255093,62.29,16.561,16.55,12.36]
[1673618255743,17.0,16.561,16.55,12.36]
[1673618255942,37.0,16.562,16.55,12.36]
[1673618256137,45.29,16.561,16.55,12.36]
[1673618256349,45.29,16.561,16.545,409.46951602]
[1673618256350,17.0,16.56,16.545,409.46951602]
[1673618256560,65.3,16.559,16.545,409.46951602]
[1673618256769,20.0,16.557,16.545,12.86951602]
[1673618256996,65.31,16.556,16.545,12.86951602]
[1673618257314,17.0,16.555,16.545,12.86951602]
[1673618258455,20.0,16.554,16.545,12.86951602]
[1673618258676,62.31,16.553,16.545,12.86951602]
[1673618260030,17.0,16.553,16.545,12.86951602]
[1673618260235,17.0,16.554,16.545,12.86951602]
[1673618260445,45.31,16.553,16.545,12.86951602]
[1673618260656,17.0,16.552,16.545,12.86951602]
[1673618261707,62.31,16.553,16.545,12.86951602]
[1673618263615,20.0,16.552,16.545,12.86951602]
[1673618263938,62.32,16.551,16.545,12.86951602]
[1673618268148,20.0,16.55,16.545,12.86951602]
[1673618268462,20.0,16.548,16.533,112.783]
[1673618268679,20.0,16.543,16.533,112.783]
[1673618268867,20.0,16.543,16.532,110.7841]
[1673618268868,17.0,16.542,16.532,110.7841]
[1673618269524,17.0,16.541,16.532,110.7841]
[1673618269759,20.0,16.541,16.532,110.7841]
[1673618269944,17.0,16.54,16.532,110.7841]
[1673618270127,17.0,16.54,16.53,61.92]
[1673618270545,17.0,16.54,16.53,16.51]
[1673618271281,20.0,16.541,16.53,16.51]
[1673618271825,17.0,16.54,16.53,16.51]
[1673618272458,45.34,16.542,16.53,16.51]
[1673618272648,38.60854806,16.544,16.53,82.78]
[1673618273300,45.34,16.543,16.53,82.78]
[1673618273506,38.60854806,16.544,16.53,82.78]
[1673618273704,45.34,16.543,16.53,82.78]
[1673618273914,38.60854806,16.544,16.53,82.78]
[1673618274148,20.0,16.543,16.53,82.78]
[1673618274462,45.34,16.542,16.53,16.53]
[1673618274667,17.0,16.541,16.53,16.53]
[1673618275602,45.35,16.54,16.53,16.53]
[1673618276026,45.34,16.542,16.53,16.53]
[1673618276246,45.34,16.543,16.53,16.53]
[1673618276452,17.0,16.542,16.53,16.53]
[1673618277082,45.34,16.543,16.53,16.53]
[1673618277300,38.60854806,16.544,16.53,83.11]
[1673618277619,17.0,16.543,16.53,82.61]
[1673618277804,38.60854806,16.544,16.53,82.61]
[1673618278016,45.34,16.543,16.53,82.61]
[1673618279273,17.0,16.542,16.53,82.61]
[1673618279488,45.35,16.541,16.53,82.61]
[1673618279700,17.0,16.54,16.53,82.61]
[1673618280130,17.0,16.54,16.53,16.63]
[1673618280537,20.0,16.542,16.53,16.63]
[1673618280538,62.35,16.541,16.53,16.63]
[1673618280969,17.0,16.541,16.53,16.63]
[1673618281181,17.0,16.542,16.53,16.63]
[1673618281384,17.0,16.542,16.53,83.38]
[1673618282452,45.34,16.543,16.53,83.38]
[1673618284345,17.0,16.542,16.53,83.38]
[1673618284542,45.35,16.541,16.53,16.74]
[1673618284758,17.0,16.54,16.53,16.74]
[1673618284971,45.35,16.539,16.53,16.74]
[1673618285174,17.0,16.538,16.53,16.74]
[1673618286757,20.0,16.542,16.53,16.74]
[1673618286758,45.35,16.541,16.53,16.74]
[1673618286958,17.0,16.54,16.53,16.74]
[1673618287705,45.34,16.543,16.53,16.74]
[1673618288025,45.34,16.545,16.53,83.22]
[1673618288213,45.33,16.548,16.53,83.22]
[1673618288425,45.32,16.55,16.54,16.51]
[1673618288652,45.31,16.554,16.54,16.51]
[1673618288856,45.31,16.556,16.54,16.51]
[1673618290226,45.3,16.558,16.54,82.78]
[1673618290544,109.4612,16.56,16.55,16.62]
[1673618290545,45.3,16.559,16.55,16.62]
[1673618290736,45.29,16.563,16.55,16.62]
[1673618290943,45.29,16.563,16.543,20.0]
[1673618290944,16.62,16.549,16.543,20.0]
[1673618291157,16.62,16.549,16.542,114.4632]
[1673618291782,16.62,16.549,16.54,83.01]
[1673618294640,68.79678665,16.566,16.541,20.0]
[1673618294850,68.79678665,16.566,16.55,16.62]
[1673618295256,65.28,16.564,16.55,16.62]
[1673618295468,45.28,16.564,16.55,16.62]
[1673618295892,45.28,16.565,16.55,16.62]
[1673618296838,17.0,16.564,16.55,16.62]
[1673618297161,45.28,16.566,16.55,16.62]
[1673618297382,45.28,16.567,16.55,16.62]
[1673618297689,20.0,16.566,16.55,16.62]
[1673618297874,45.28,16.565,16.55,16.62]
[1673618299353,20.0,16.566,16.551,20.0]
[1673618299559,20.0,16.567,16.55,83.2]
[1673618299772,45.28,16.566,16.55,83.2]
[1673618301386,17.0,16.565,16.55,83.2]
[1673618301810,17.0,16.565,16.55,82.7]
[1673618302004,17.0,16.565,16.55,16.63]
[1673618302219,17.0,16.565,16.55,83.24]
[1673618304018,37.0,16.566,16.55,83.24]
[1673618304864,45.28,16.565,16.55,83.24]
[1673618305073,17.0,16.564,16.55,83.24]
[1673618306319,65.29,16.563,16.55,16.76]
[1673618306531,20.0,16.561,16.544,117.7468]
[1673618306763,45.29,16.56,16.545,20.0]
[1673618306957,17.0,16.559,16.545,20.0]
[1673618307387,20.0,16.558,16.545,20.0]
[1673618307601,20.0,16.558,16.544,117.7468]
[1673618307602,17.0,16.557,16.544,117.7468]
[1673618307914,65.31,16.556,16.544,117.7468]
[1673618308145,17.0,16.555,16.544,117.7468]
[1673618310120,45.31,16.554,16.54,83.11]
[1673618310310,17.0,16.553,16.54,83.11]
[1673618310520,17.0,16.553,16.54,16.63]
[1673618310729,62.31,16.553,16.54,16.63]
[1673618313144,20.0,16.552,16.54,16.63]
[1673618313357,62.32,16.551,16.54,16.63]
[1673618317163,20.0,16.55,16.54,16.63]
[1673618317373,62.32,16.549,16.54,16.63]
[1673618318633,17.0,16.549,16.54,16.63]
[1673618319373,17.0,16.55,16.54,16.63]
[1673618319585,45.32,16.549,16.54,16.63]
[1673618319777,17.0,16.548,16.54,16.63]
[1673618320845,17.0,16.548,16.534,117.8531]
[1673618321052,65.33,16.547,16.534,117.8531]
[1673618321271,17.0,16.546,16.534,117.8531]
[1673618323476,17.0,16.546,16.534,147.7331799]
[1673618323895,108.5064,16.551,16.534,147.7331799]
[1673618323896,45.31,16.553,16.54,16.62]
[1673618324204,185.28408665,16.56,16.54,16.62]
[1673618324205,45.3,16.558,16.54,16.62]
[1673618324400,45.3,16.558,16.541,29.8800799]
[1673618324611,20.0,16.557,16.542,20.0]